bitfinex/quotes_BTCUSD_20251027
["timestamp","ask_amount","ask_price","bid_price","bid_amount"]
[1761553123118,0.00814552,115500.0,115490.0,0.60504744]
[1761553123369,0.00835123,115500.0,115490.0,0.63101936]
[1761553124202,0.00835123,115500.0,115490.0,0.63201936]
[1761553125367,0.00835123,115500.0,115490.0,0.63501936]
[1761553133835,0.00835123,115500.0,115490.0,0.20314708]
[1761553136226,0.00835123,115500.0,115490.0,0.63501936]
[1761553139846,0.00835123,115500.0,115490.0,0.68874123]
[1761553140690,0.00835123,115500.0,115490.0,1.17433538]
[1761553140898,0.00835123,115500.0,115490.0,0.68874123]
[1761553141112,0.00835123,115500.0,115490.0,1.17433538]
[1761553143210,0.00835123,115500.0,115490.0,0.68874123]
[1761553144430,0.00835123,115500.0,115490.0,0.17717516]
[1761553144660,0.00835123,115500.0,115490.0,1.24537115]
[1761553144839,0.03432121,115500.0,115490.0,1.23818247]
[1761553146244,0.03432121,115500.0,115490.0,0.75258832]
[1761553147001,0.03432121,115500.0,115490.0,0.17717516]
[1761553147216,0.03432121,115500.0,115490.0,0.82211799]
[1761553147420,0.03432121,115500.0,115490.0,0.81492931]
[1761553147926,0.03432121,115500.0,115490.0,0.66276931]
[1761553148134,0.03432121,115500.0,115490.0,0.81492931]
[1761553148641,0.03432121,115500.0,115490.0,0.66276931]
[1761553148841,0.03432121,115500.0,115490.0,0.81492931]
[1761553151218,0.03432121,115500.0,115490.0,1.39034247]
[1761553151333,0.00835123,115500.0,115490.0,1.39034247]
[1761553151946,0.00835123,115500.0,115490.0,1.38934247]
[1761553152173,0.00835123,115500.0,115490.0,1.38634247]
[1761553152426,0.00835123,115500.0,115490.0,1.38734247]
[1761553152606,0.00835123,115500.0,115490.0,1.39534247]
[1761553152992,0.00835123,115500.0,115490.0,1.59534247]
[1761553156466,0.00835123,115500.0,115490.0,0.62415417]
[1761553156649,0.00835123,115500.0,115490.0,1.59534247]
[1761553156996,0.00835123,115500.0,115490.0,1.68648247]
[1761553157227,0.00835123,115500.0,115490.0,1.59534247]
[1761553158095,0.00835123,115500.0,115490.0,1.39534247]
[1761553158439,0.00835123,115500.0,115490.0,1.59534247]
[1761553167193,1e-08,115500.0,115490.0,1.59534247]
[1761553167447,1e-08,115500.0,115490.0,1.6576087]
[1761553168894,1e-08,115500.0,115490.0,0.3342604]
[1761553169133,1e-08,115500.0,115490.0,0.96506832]
[1761553171049,1e-08,115500.0,115490.0,1.02733455]
[1761553174303,1e-08,115500.0,115490.0,0.93751554]
[1761553176736,1e-08,115500.0,115490.0,1.42310969]
[1761553182306,1e-08,115500.0,115490.0,1.5129287]
[1761553186024,1e-08,115500.0,115490.0,1.7129287]
[1761553193214,1e-08,115500.0,115490.0,2.54852284]
[1761553193418,1e-08,115500.0,115490.0,3.18663798]
[1761553193625,1e-08,115500.0,115490.0,3.22282026]
[1761553193809,1e-08,115500.0,115490.0,3.20285226]
[1761553194011,1e-08,115500.0,115490.0,3.10978226]
[1761553194438,1e-08,115500.0,115490.0,3.15377226]
[1761553194659,1e-08,115500.0,115490.0,3.16577226]
[1761553195081,1e-08,115500.0,115490.0,3.15477226]
[1761553195307,1e-08,115500.0,115490.0,1.71398981]
[1761553195508,1e-08,115500.0,115490.0,2.55409311]
[1761553195848,1e-08,115500.0,115490.0,2.55609311]
[1761553196955,1e-08,115500.0,115490.0,3.04168726]
[1761553197974,1e-08,115500.0,115490.0,3.05168725]
[1761553199649,6.904e-05,115560.0,115550.0,0.17308524]
[1761553199819,0.08997206,115560.0,115550.0,0.65867939]
[1761553200034,0.08997206,115560.0,115550.0,0.17308524]
[1761553200229,0.09120564,115560.0,115550.0,0.65867939]
[1761553201051,0.10720564,115560.0,115550.0,0.65867939]
[1761553201810,0.09120564,115560.0,115550.0,0.17308524]
[1761553202210,0.10620564,115560.0,115550.0,0.17308524]
[1761553202416,0.10620564,115560.0,115550.0,0.17408524]
[1761553203983,0.58905089,115560.0,115550.0,0.001]
[1761553204199,0.76212115,115560.0,115550.0,0.001]
[1761553204422,0.74672112,115560.0,115550.0,0.001]
[1761553204910,1.17798406,115560.0,115550.0,0.001]
[1761553205110,1.51798406,115560.0,115550.0,0.001]
[1761553205322,0.03618228,115540.0,115530.0,0.1817666]
[1761553205564,0.14763881,115540.0,115530.0,0.1817666]
[1761553205767,0.14846134,115540.0,115530.0,0.1817666]
[1761553207500,0.16146134,115540.0,115530.0,0.1817666]
[1761553207768,0.10364154,115540.0,115530.0,0.1817666]
[1761553208758,0.09064154,115540.0,115530.0,0.1817666]
[1761553209138,0.11701465,115540.0,115530.0,0.1817666]
[1761553209561,0.09064154,115540.0,115530.0,0.1817666]
[1761553209789,0.11227906,115540.0,115530.0,0.1817666]
[1761553210634,0.11527906,115540.0,115530.0,0.1817666]
[1761553211893,0.09364154,115540.0,115530.0,0.1817666]
[1761553212110,0.09364154,115540.0,115530.0,0.61302954]
[1761553213563,0.00382253,115540.0,115530.0,0.61302954]
[1761553214637,0.00082253,115540.0,115530.0,0.61402954]
[1761553215774,0.00082253,115540.0,115530.0,0.95402954]
[1761553220781,0.00082253,115540.0,115530.0,0.95302954]
[1761553221040,0.00082253,115540.0,115530.0,0.95402954]
[1761553221512,0.00082253,115540.0,115530.0,0.95602954]
[1761553223766,0.00082253,115540.0,115530.0,0.5247666]
[1761553224013,0.00082253,115540.0,115530.0,0.95602954]
[1761553227207,0.00082253,115540.0,115510.0,0.3757979]
[1761553227411,0.00015305,115560.0,115550.0,0.17308524]
[1761553227608,0.11160584,115560.0,115550.0,0.17308524]
[1761553227852,0.19991272,115560.0,115550.0,0.17308524]
[1761553228451,0.11160584,115560.0,115550.0,0.17308524]
[1761553228673,0.09297206,115560.0,115550.0,0.17308524]
[1761553229296,0.43297206,115560.0,115550.0,0.17308524]
[1761553230616,0.45893555,115560.0,115550.0,0.17308524]
[1761553232420,0.11893555,115560.0,115550.0,0.17308524]
[1761553233585,0.00315305,115560.0,115550.0,0.60434818]
[1761553233957,0.00438663,115560.0,115550.0,0.60434818]
[1761553235011,0.00438663,115560.0,115550.0,0.17308524]
[1761553238768,0.00438663,115560.0,115550.0,0.61151438]
[1761553238973,0.00438663,115560.0,115550.0,0.60434818]
[1761553239175,0.00438663,115560.0,115550.0,0.17308524]
[1761553246728,0.00438663,115560.0,115550.0,0.60434818]
[1761553247823,0.00438663,115560.0,115550.0,0.17308524]
[1761553248306,0.09420564,115560.0,115550.0,0.17308524]
[1761553248694,0.16593724,115560.0,115550.0,0.17308524]
[1761553249091,0.09420564,115560.0,115550.0,0.17308524]
[1761553249681,0.11583942,115560.0,115550.0,0.17308524]
[1761553258636,0.09420564,115560.0,115550.0,0.17308524]
[1761553261653,0.09420564,115560.0,115550.0,0.07308524]
[1761553263346,0.09420564,115560.0,115550.0,0.50434818]
[1761553263757,0.09420564,115560.0,115550.0,0.55823319]
[1761553266863,0.00438663,115560.0,115550.0,0.55823319]
[1761553267967,0.00438663,115560.0,115550.0,0.07308524]
[1761553268167,0.00438663,115560.0,115550.0,0.55823319]
[1761553268508,0.02602041,115560.0,115550.0,0.55823319]
[1761553271426,0.00438663,115560.0,115550.0,0.55823319]
[1761553274404,0.09420564,115560.0,115550.0,0.07308524]
[1761553274619,0.86603021,115560.0,115550.0,0.17308524]
[1761553275489,0.86603021,115560.0,115550.0,0.10819661]
[1761553277211,0.86603021,115560.0,115540.0,0.17310022]
[1761553277393,0.32072218,115550.0,115540.0,0.17310022]
[1761553277619,0.29908653,115550.0,115540.0,0.17310022]
[1761553277844,0.38890554,115550.0,115540.0,0.17310022]
[1761553278180,0.41487195,115550.0,115540.0,0.17310022]
[1761553278379,0.24178671,115550.0,115540.0,0.17310022]
[1761553279650,0.1519677,115550.0,115540.0,0.17310022]
[1761553279819,0.17360335,115550.0,115540.0,0.17310022]
[1761553282595,0.17463142,115550.0,115540.0,0.17310022]
[1761553283435,0.17463142,115550.0,115540.0,0.65824817]
[1761553284689,0.15299577,115550.0,115540.0,0.65824817]
[1761553284895,0.15299577,115550.0,115540.0,0.65771915]
[1761553285102,0.15299577,115550.0,115540.0,0.65275635]
[1761553285313,0.15299577,115550.0,115540.0,0.1676084]
[1761553285532,0.15299577,115550.0,115540.0,0.65275635]
[1761553285966,0.00102807,115550.0,115540.0,0.65275635]
[1761553286175,0.00102807,115550.0,115540.0,0.65342327]
[1761553288543,0.00102807,115550.0,115540.0,0.16827532]
[1761553288711,0.00102807,115550.0,115540.0,0.65342327]
[1761553293383,0.00102807,115550.0,115540.0,0.16827532]
[1761553293609,0.02266372,115550.0,115540.0,0.65342327]
[1761553294788,0.02266372,115550.0,115540.0,0.16827532]
[1761553295274,0.02266372,115550.0,115540.0,0.65342327]
[1761553298231,0.02266372,115550.0,115540.0,0.16827532]
[1761553298449,0.02266372,115550.0,115540.0,0.65342327]
[1761553298654,0.04846753,115550.0,115540.0,0.65342327]
[1761553299036,0.04846753,115550.0,115540.0,0.00066692]
[1761553299037,0.83270201,115550.0,115540.0,0.00066692]
[1761553299245,0.81106636,115550.0,115540.0,0.00066692]
[1761553299644,0.83703596,115550.0,115540.0,0.00066692]
[1761553300460,0.35188801,115550.0,115540.0,0.00066692]
[1761553300692,0.35188801,115550.0,115540.0,0.65891509]
[1761553300693,0.15299896,115550.0,115540.0,0.65891509]
[1761553300900,0.34771985,115550.0,115540.0,0.00066692]
[1761553301102,0.3260842,115550.0,115540.0,0.00066692]
[1761553301299,0.3280842,115550.0,115540.0,0.00066689]
[1761553301645,0.3260842,115550.0,115540.0,0.00066689]
[1761553301859,0.41590321,115550.0,115540.0,0.00066689]
[1761553302203,0.42090321,115550.0,115540.0,0.00066689]
[1761553302819,0.90605116,115550.0,115540.0,0.00066689]
[1761553303394,0.42090321,115550.0,115540.0,0.00066689]
[1761553303602,0.90605116,115550.0,115540.0,0.00066689]
[1761553304647,0.90481937,115550.0,115540.0,0.00066689]
[1761553307220,1.24481937,115550.0,115540.0,0.00066689]
[1761553307419,1.26341248,115550.0,115540.0,0.00066689]
[1761553308678,0.77826453,115550.0,115540.0,0.00066689]
[1761553308876,1.26341248,115550.0,115540.0,0.00066689]
[1761553309261,1.24481937,115550.0,115540.0,0.00066689]
[1761553312704,1.07173413,115550.0,115540.0,0.00066689]
[1761553312912,0.58658618,115550.0,115540.0,0.00066689]
[1761553313059,1.07173413,115550.0,115540.0,0.00066689]
[1761553313460,0.58658618,115550.0,115540.0,0.00066689]
[1761553313829,1.07173413,115550.0,115540.0,0.00066689]
[1761553315406,0.58658618,115550.0,115540.0,0.00066689]
[1761553315619,1.07173413,115550.0,115540.0,0.00066689]
[1761553320633,0.58658618,115550.0,115540.0,0.00066689]
[1761553320768,1.07173413,115550.0,115540.0,0.00066689]
[1761553321642,1.03555185,115550.0,115540.0,0.00066689]
[1761553321966,1.09030964,115550.0,115540.0,0.00066689]
[1761553323184,0.60516169,115550.0,115540.0,0.00066689]
[1761553323386,0.49676717,115550.0,115540.0,0.00066689]
[1761553323794,0.98191512,115550.0,115540.0,0.00066689]
[1761553324004,0.98191512,115550.0,115540.0,0.00166689]
[1761553324164,0.49676717,115550.0,115540.0,0.00166689]
[1761553324371,0.52048959,115550.0,115540.0,0.00166689]
[1761553331202,0.53909512,115550.0,115540.0,0.00166689]
[1761553331782,0.09461529,115550.0,115540.0,0.43308325]
[1761553332194,0.13079757,115550.0,115540.0,0.02763238]
[1761553332407,0.13079757,115550.0,115540.0,0.02763237]
[1761553338176,0.13079757,115550.0,115540.0,0.00166688]
[1761553338377,0.18889497,115550.0,115540.0,0.00166688]
[1761553338734,0.36198021,115550.0,115540.0,0.1747671]
[1761553339199,0.36198021,115550.0,115540.0,0.00166688]
[1761553339553,0.36198021,115550.0,115540.0,0.1747671]
[1761553339729,0.18889497,115550.0,115540.0,0.1747671]
[1761553340541,0.13079757,115550.0,115540.0,0.1747671]
[1761553340742,0.32551846,115550.0,115540.0,0.1747671]
[1761553340966,0.30388281,115550.0,115540.0,0.1747671]
[1761553341640,0.13079757,115550.0,115540.0,0.1747671]
[1761553343724,0.32551846,115550.0,115540.0,0.1747671]
[1761553343966,0.30388281,115550.0,115540.0,0.1747671]
[1761553344890,0.35159471,115550.0,115540.0,0.1747671]
[1761553345937,0.35159471,115550.0,115540.0,0.17476709]
[1761553349397,0.35159471,115550.0,115540.0,0.00166687]
[1761553349683,0.35159471,115550.0,115540.0,0.17476709]
[1761553350187,0.35159471,115550.0,115540.0,0.00166687]
[1761553350397,0.35159471,115550.0,115540.0,0.17476709]
[1761553350797,0.35159471,115550.0,115540.0,0.00166687]
[1761553351012,0.78301107,115550.0,115540.0,0.00166687]
[1761553351768,0.80161364,115550.0,115540.0,0.00166687]
[1761553353661,1.14161364,115550.0,115540.0,0.00166687]
[1761553354068,1.15033916,115550.0,115540.0,0.00166687]
[1761553354475,1.14947516,115550.0,115540.0,0.00166687]
[1761553355124,1.14947516,115550.0,115520.0,0.0086565]
[1761553355125,0.20929748,115530.0,115520.0,0.0086565]
[1761553355348,0.38059013,115530.0,115520.0,0.18178669]
[1761553355563,0.29911649,115530.0,115520.0,0.18178669]
[1761553355780,0.29911649,115530.0,115520.0,0.0086565]
[1761553356921,0.29911649,115530.0,115520.0,0.0096565]
[1761553357198,0.29911649,115530.0,115520.0,0.001]
[1761553357426,0.29911649,115530.0,115520.0,0.17413019]
[1761553357644,0.29911649,115530.0,115520.0,0.17313019]
[1761553358077,0.30111649,115530.0,115520.0,0.17413019]
[1761553358498,0.30111649,115530.0,115520.0,0.17313019]
[1761553360590,0.34249552,115530.0,115520.0,0.17313019]
[1761553362151,0.03618228,115520.0,115510.0,0.17312131]
[1761553362263,0.14764256,115520.0,115510.0,0.17312131]
[1761553362890,0.32077275,115520.0,115500.0,0.29434304]
[1761553363091,0.12600129,115510.0,115500.0,0.29434304]
[1761553363290,0.12604976,115510.0,115500.0,0.29434304]
[1761553363713,0.03618228,115500.0,115490.0,0.18176529]
[1761553363948,0.14764631,115500.0,115490.0,0.18176529]
[1761553364161,0.31952737,115500.0,115490.0,0.02597601]
[1761553364365,0.29788235,115500.0,115480.0,0.17314723]
[1761553364546,0.20806334,115500.0,115490.0,0.17317516]
[1761553364815,0.29788235,115500.0,115490.0,0.17317516]
[1761553365019,0.12472218,115500.0,115490.0,0.17417516]
[1761553365976,0.29788235,115500.0,115490.0,0.17417516]
[1761553367218,0.34798175,115500.0,115490.0,0.17417516]
[1761553367389,0.12472218,115500.0,115490.0,0.17417516]
[1761553367596,0.1463672,115500.0,115490.0,0.17417516]
[1761553367907,0.12472218,115500.0,115490.0,0.17417516]
[1761553368105,0.12472218,115500.0,115490.0,0.60559152]
[1761553369934,0.12472218,115500.0,115490.0,0.17417516]
[1761553370138,0.1463672,115500.0,115490.0,0.17417516]
[1761553373653,0.17832344,115500.0,115490.0,0.17417516]
[1761553374595,0.35148361,115500.0,115490.0,0.001]
[1761553374933,0.32983859,115500.0,115490.0,0.001]
[1761553375111,0.32983859,115500.0,115490.0,0.17417516]
[1761553375313,0.32983859,115500.0,115490.0,0.001]
[1761553377601,0.32983859,115500.0,115490.0,0.17417516]
[1761553377788,0.29788235,115500.0,115490.0,0.17417516]
[1761553378638,0.29788235,115500.0,115490.0,0.001]
[1761553378884,0.29788235,115500.0,115490.0,0.17417516]
[1761553379440,0.12472218,115500.0,115490.0,0.17417516]
[1761553380035,0.1463672,115500.0,115490.0,0.17417516]
[1761553380245,0.12472218,115500.0,115490.0,0.60559152]
[1761553380374,0.12472218,115500.0,115490.0,0.17417516]
[1761553380585,0.1463672,115500.0,115490.0,0.17417516]
[1761553380775,0.17832378,115500.0,115490.0,0.17417516]
[1761553380997,0.35148395,115500.0,115490.0,0.17417516]
[1761553381201,0.32983893,115500.0,115490.0,0.17417516]
[1761553381416,0.32983893,115500.0,115490.0,0.001]
[1761553381591,0.32983893,115500.0,115490.0,0.17417516]
[1761553381982,0.32983893,115500.0,115490.0,0.001]
[1761553385748,0.76125529,115500.0,115490.0,0.001]
[1761553386776,0.32983893,115500.0,115490.0,0.001]
[1761553387724,0.81564424,115500.0,115490.0,0.001]
[1761553389645,1.15564424,115500.0,115490.0,0.001]
[1761553390093,0.66983893,115500.0,115490.0,0.001]
[1761553390337,1.15564424,115500.0,115490.0,0.001]
[1761553397484,0.66983893,115500.0,115490.0,0.001]
[1761553398271,1.15564424,115500.0,115490.0,0.001]
[1761553402578,0.66983893,115500.0,115490.0,0.001]
[1761553402793,1.15564424,115500.0,115490.0,0.001]
[1761553405768,1.15564424,115500.0,115490.0,0.00132214]
[1761553407367,0.66983893,115500.0,115490.0,0.00132214]
[1761553407569,0.63788235,115500.0,115490.0,0.00132214]
[1761553407958,0.63788235,115500.0,115490.0,0.1744973]
[1761553408780,0.08981901,115500.0,115490.0,0.66030261]
[1761553409189,0.08981901,115500.0,115490.0,0.68627916]
[1761553409715,0.12600129,115500.0,115490.0,0.68627916]
[1761553410095,0.12600129,115500.0,115490.0,0.20047385]
[1761553410231,0.12600129,115500.0,115490.0,0.68627916]
[1761553411636,0.12600129,115500.0,115490.0,0.20047385]
[1761553411834,0.12600129,115500.0,115490.0,0.68627916]
[1761553418805,0.329081,115500.0,115490.0,0.20047385]
[1761553419061,0.15592083,115500.0,115490.0,0.1744973]
[1761553419220,0.17756585,115500.0,115490.0,0.1744973]
[1761553420938,0.14138357,115500.0,115490.0,0.1744973]
[1761553421156,0.12600129,115500.0,115490.0,0.17449733]
[1761553421408,0.12600129,115500.0,115490.0,0.66030264]
[1761553421580,0.12600129,115500.0,115490.0,0.17449734]
[1761553421808,0.12600129,115500.0,115490.0,0.66030265]
[1761553422651,0.12600129,115500.0,115490.0,0.6862806]
[1761553426412,0.12600129,115500.0,115490.0,0.20047529]
[1761553426613,0.12600129,115500.0,115490.0,0.6862806]
[1761553429455,0.03618228,115500.0,115490.0,0.6862806]
[1761553433394,0.03618228,115500.0,115490.0,0.20047529]
[1761553433604,0.14910325,115500.0,115490.0,0.20047529]
[1761553433991,0.12600129,115500.0,115490.0,0.20047529]
[1761553434670,0.14764631,115500.0,115490.0,0.20047529]
[1761553434952,0.12600129,115500.0,115490.0,0.20047529]
[1761553435431,0.14764631,115500.0,115490.0,0.20047529]
[1761553435972,0.14764631,115500.0,115490.0,0.6862806]
[1761553438150,0.20912008,115500.0,115490.0,0.20047529]
[1761553438457,0.18747506,115500.0,115490.0,0.20047529]
[1761553438883,0.12600129,115500.0,115490.0,0.20047529]
[1761553439526,0.12600129,115500.0,115490.0,0.6862806]
[1761553439736,0.12600129,115500.0,115490.0,0.68628061]
[1761553440557,0.12600129,115500.0,115490.0,0.2004753]
[1761553440764,0.12600129,115500.0,115490.0,0.02730014]
[1761553440765,0.32080648,115500.0,115490.0,0.02730014]
[1761553441099,0.83436684,115500.0,115490.0,0.17449735]
[1761553442103,0.83436684,115500.0,115490.0,0.00132219]
[1761553445017,0.34856153,115500.0,115490.0,0.00132219]
[1761553445222,0.83436684,115500.0,115490.0,0.00132219]
[1761553445456,0.34856153,115500.0,115490.0,0.00132219]
[1761553445771,0.83436684,115500.0,115490.0,0.00132219]
[1761553446557,0.34856153,115500.0,115490.0,0.00132219]
[1761553446926,0.83436684,115500.0,115490.0,0.00132219]
[1761553449794,0.34856153,115500.0,115490.0,0.00132219]
[1761553450126,0.12600129,115500.0,115490.0,0.17449735]
[1761553452282,0.12600129,115500.0,115490.0,0.61349021]
[1761553452500,0.12600129,115500.0,115490.0,0.60630153]
[1761553452704,0.12600129,115500.0,115490.0,0.17449735]
[1761553452901,0.12600129,115500.0,115490.0,0.18168603]
[1761553453498,0.12600129,115500.0,115490.0,0.61349021]
[1761553453679,0.12600129,115500.0,115490.0,0.60630153]
[1761553455082,0.03618228,115500.0,115490.0,0.60630153]
[1761553455897,0.03618228,115500.0,115490.0,0.17449735]
[1761553456137,0.03618228,115500.0,115490.0,0.60630153]
[1761553463852,0.03618228,115500.0,115490.0,0.17449735]
[1761553464617,0.12600129,115500.0,115490.0,0.17449735]
[1761553464814,0.17756608,115500.0,115490.0,0.17449735]
[1761553465479,0.14764631,115500.0,115490.0,0.17449735]
[1761553465660,0.12600129,115500.0,115490.0,0.17449735]
[1761553470703,0.14764631,115500.0,115490.0,0.17449735]
[1761553473132,0.75261066,115500.0,115490.0,0.00132219]
[1761553473314,0.73096564,115500.0,115490.0,0.00132219]
[1761553473508,0.82078465,115500.0,115490.0,0.00132219]
[1761553473740,0.38898047,115500.0,115490.0,0.00132219]
[1761553474146,0.72898047,115500.0,115490.0,0.00132219]
[1761553474562,1.16078465,115500.0,115490.0,0.00132219]
[1761553475278,1.1867662,115500.0,115490.0,0.00132219]
[1761553477354,1.1867662,115500.0,115490.0,0.00032219]
[1761553477975,1.1947662,115500.0,115490.0,0.00032219]
[1761553478354,1.21340798,115500.0,115490.0,0.00032219]
[1761553484336,0.7816038,115500.0,115490.0,0.00032219]
[1761553484566,1.21340798,115500.0,115490.0,0.00032219]
[1761553484968,0.7816038,115500.0,115490.0,0.00032219]
[1761553485167,1.21340798,115500.0,115490.0,0.00032219]
[1761553485368,1.1772257,115500.0,115490.0,0.00032219]
[1761553485652,1.21340798,115500.0,115490.0,0.00032219]
[1761553488859,1.1772257,115500.0,115490.0,0.00032219]
[1761553489066,1.21340798,115500.0,115490.0,0.00032219]
[1761553492305,1.47602598,115500.0,115490.0,0.00032219]
[1761553492509,1.22955194,115500.0,115490.0,0.00032219]
[1761553493196,1.34161394,115500.0,115490.0,0.00032219]
[1761553493607,1.22955194,115500.0,115490.0,0.00032219]
[1761553494032,1.35157894,115500.0,115490.0,0.00032219]
[1761553494260,1.22955194,115500.0,115490.0,0.00032219]
[1761553494901,1.46784998,115500.0,115490.0,0.00032219]
[1761553495934,1.46780941,115500.0,115490.0,0.00032219]
[1761553496348,1.48395722,115500.0,115490.0,0.00032219]
[1761553496781,1.22951522,115500.0,115490.0,0.00032219]
[1761553497256,1.21336741,115500.0,115490.0,0.00032219]
[1761553498190,0.78156323,115500.0,115490.0,0.00032219]
[1761553498395,1.21336741,115500.0,115490.0,0.00032219]
[1761553500427,0.78156323,115500.0,115490.0,0.00032219]
[1761553500607,1.21336741,115500.0,115490.0,0.00032219]
[1761553501496,0.78156323,115500.0,115490.0,0.00032219]
[1761553501710,1.21336741,115500.0,115490.0,0.00032219]
[1761553501912,1.22953498,115500.0,115490.0,0.00032219]
[1761553502120,1.60005498,115500.0,115490.0,0.00032219]
[1761553502322,1.50898498,115500.0,115490.0,0.00032219]
[1761553502776,1.5322365,115500.0,115490.0,0.00032219]
[1761553504283,1.54694877,115500.0,115490.0,0.00032219]
[1761553504485,1.56312868,115500.0,115490.0,0.00032219]
[1761553504885,0.03618228,115450.0,115440.0,0.19914975]
[1761553505091,0.14765568,115450.0,115440.0,0.19914975]
[1761553505343,0.14765568,115450.0,115440.0,0.17316314]
[1761553505532,0.12600129,115450.0,115440.0,0.17316314]
[1761553505935,0.14765568,115450.0,115440.0,0.17316314]
[1761553506102,0.14765568,115450.0,115440.0,0.17330866]
[1761553506455,0.14765568,115450.0,115440.0,0.17430866]
[1761553506679,0.14765568,115450.0,115440.0,0.18030866]
[1761553510018,0.35066415,115450.0,115440.0,0.18030866]
[1761553510200,0.29923645,115450.0,115440.0,0.18030866]
[1761553510411,0.12600129,115450.0,115440.0,0.61211284]
[1761553510624,0.12600129,115450.0,115440.0,0.18030866]
[1761553511671,0.12600129,115450.0,115440.0,0.17930866]
[1761553511888,0.12600129,115450.0,115440.0,0.65936571]
[1761553512097,0.12600129,115450.0,115440.0,0.66036571]
[1761553512298,0.29923645,115450.0,115440.0,0.66045274]
[1761553512497,0.12600129,115450.0,115440.0,0.66045274]
[1761553513164,0.12600129,115450.0,115440.0,0.17439569]
[1761553513377,0.12600129,115450.0,115440.0,0.66045274]
[1761553513582,0.29923645,115450.0,115440.0,0.17439569]
[1761553513792,0.29923645,115450.0,115440.0,0.66045274]
[1761553515567,0.29923645,115450.0,115440.0,0.17439569]
[1761553515781,0.29923645,115450.0,115440.0,0.66045274]
[1761553516244,0.12600129,115450.0,115440.0,0.66045274]
[1761553516912,0.32089084,115450.0,115440.0,0.17439569]
[1761553517114,0.29923645,115450.0,115440.0,0.66045274]
[1761553517747,0.29923645,115450.0,115440.0,0.17439569]
[1761553517992,0.32507457,115450.0,115440.0,0.66045274]
[1761553518201,0.32507457,115450.0,115440.0,0.00114552]
[1761553518202,0.81113162,115450.0,115440.0,0.00114552]
[1761553519051,0.81113162,115450.0,115440.0,0.00014552]
[1761553519496,0.81313162,115450.0,115440.0,0.00014552]
[1761553522957,0.32707457,115450.0,115440.0,0.00014552]
[1761553523156,0.81313162,115450.0,115440.0,0.00014552]
[1761553524047,0.32707457,115450.0,115440.0,0.00014552]
[1761553524250,0.81313162,115450.0,115440.0,0.00014552]
[1761553528989,1.15313162,115450.0,115440.0,0.00014552]
[1761553529389,1.17912462,115450.0,115440.0,0.00014552]
[1761553531011,0.69306757,115450.0,115440.0,0.00014552]
[1761553531413,1.17912462,115450.0,115440.0,0.00014552]
[1761553532236,0.69306757,115450.0,115440.0,0.00014552]
[1761553532437,1.19775803,115450.0,115440.0,0.00014552]
[1761553536466,1.68381508,115450.0,115440.0,0.00014552]
[1761553536870,1.19775803,115450.0,115440.0,0.00014552]
[1761553537236,0.71170098,115450.0,115440.0,0.00014552]
[1761553537441,1.19775803,115450.0,115440.0,0.00014552]
[1761553537754,1.19675803,115450.0,115440.0,0.00014552]
[1761553538093,1.20675803,115450.0,115440.0,0.00014552]
[1761553538346,0.72070098,115450.0,115440.0,0.00014552]
[1761553538530,1.69281508,115450.0,115440.0,0.00014552]
[1761553538764,0.72070098,115450.0,115440.0,0.00014552]
[1761553538969,1.20675803,115450.0,115440.0,0.00014552]
[1761553539185,0.17325017,115440.0,115430.0,0.00283317]
[1761553539388,1.52156156,115430.0,115420.0,0.0004]
[1761553539595,1.61138057,115430.0,115420.0,0.00088469]
[1761553539786,1.12532352,115430.0,115420.0,0.00088469]
[1761553539988,1.12879046,115430.0,115420.0,0.00088469]
[1761553540222,1.12879046,115430.0,115410.0,0.0004]
[1761553540223,0.17328019,115420.0,115410.0,0.0004]
[1761553540430,1.38287461,115420.0,115410.0,0.00044845]
[1761553540672,1.70121459,115420.0,115410.0,0.00044845]
[1761553541079,1.70468193,115420.0,115410.0,0.00044845]
[1761553541286,1.77088324,115420.0,115410.0,0.00044845]
[1761553541625,0.20947748,115410.0,115400.0,0.0004]
[1761553541831,1.3612296,115410.0,115400.0,0.00052602]
[1761553542232,1.36988389,115410.0,115400.0,0.00052602]
[1761553542488,1.3789509,115410.0,115400.0,0.00052602]
[1761553543891,1.3799509,115410.0,115400.0,0.00052602]
[1761553545349,1.3799509,115410.0,115400.0,0.00114391]
[1761553550036,0.4078368,115410.0,115400.0,0.00114391]
[1761553550222,1.3799509,115410.0,115400.0,0.00114391]
[1761553552338,0.5494925,115400.0,115390.0,0.0004]
[1761553552499,1.21518757,115400.0,115390.0,0.000484]
[1761553553758,0.72913052,115400.0,115390.0,0.007484]
[1761553554017,1.12536856,115400.0,115390.0,0.007484]
[1761553555107,0.63931151,115400.0,115390.0,0.00788582]
[1761553555522,1.14399249,115400.0,115390.0,0.00788582]
[1761553556534,0.65793544,115400.0,115390.0,0.00788582]
[1761553556737,1.14399249,115400.0,115390.0,0.00788582]
[1761553556937,1.2338115,115400.0,115390.0,0.00788582]
[1761553557697,1.25981793,115400.0,115390.0,0.00788582]
[1761553558000,1.25981793,115400.0,115390.0,0.00809183]
[1761553558408,1.25981793,115400.0,115390.0,0.00309183]
[1761553563334,0.77376088,115400.0,115390.0,0.00309183]
[1761553563549,1.25981793,115400.0,115390.0,0.00309183]
[1761553565997,1.25981793,115400.0,115390.0,0.00060783]
[1761553567488,1.25981793,115400.0,115390.0,0.00060784]
[1761553567859,1.25981793,115400.0,115390.0,0.0005562]
[1761553569248,1.28306945,115400.0,115390.0,0.0005562]
[1761553570032,1.7691265,115400.0,115390.0,0.0005562]
[1761553571334,1.7701265,115400.0,115390.0,0.0005562]
[1761553571957,0.70819339,115400.0,115390.0,0.0005562]
[1761553572158,1.19425044,115400.0,115390.0,0.0005562]
[1761553572354,1.68030749,115400.0,115390.0,0.0005562]
[1761553573052,1.52162162,115390.0,115380.0,0.0004]
[1761553573244,1.63006456,115390.0,115380.0,0.00044853]
[1761553573444,1.71988357,115390.0,115380.0,0.00044853]
[1761553573814,1.20655543,115390.0,115380.0,0.00044853]
[1761553576776,1.17037315,115390.0,115380.0,0.00044853]
[1761553576967,1.20655543,115390.0,115380.0,0.00044853]
[1761553578935,1.20655543,115390.0,115380.0,0.00065456]
[1761553579157,1.18054534,115390.0,115380.0,0.00065456]
[1761553579576,0.54952254,115380.0,115370.0,0.0004]
[1761553579778,1.1967168,115380.0,115370.0,0.0004841]
[1761553580439,1.16053452,115380.0,115370.0,0.0004841]
[1761553580646,1.1967168,115380.0,115370.0,0.0004841]
[1761553581021,1.22296832,115380.0,115370.0,0.0004841]
[1761553581376,1.25484816,115380.0,115370.0,0.0004841]
[1761553581575,0.17335529,115370.0,115360.0,10.02607]
[1761553581779,1.1099583,115370.0,115360.0,10.02607]
[1761553582094,1.10691282,115370.0,115360.0,10.02607]
[1761553583758,0.69738847,115370.0,115360.0,10.02607]
[1761553583896,1.56294021,115370.0,115360.0,10.02607]
[1761553584109,1.19415874,115370.0,115360.0,10.02607]
[1761553584356,1.74763346,115370.0,115360.0,10.02607]
[1761553585374,1.74763346,115370.0,115360.0,10.00006548]
[1761553585562,1.72538194,115370.0,115360.0,9.97406096]
[1761553585774,2.8897207,115370.0,115360.0,9.94846859]